bitfinex-derivatives/quotes_BTCF0:USTF0_20250207
["timestamp","ask_amount","ask_price","bid_price","bid_amount"]
[1738946049997,0.00015299,98089.0,98087.0,0.2038077]
[1738946050698,0.00015299,98089.0,98079.0,0.54017313]
[1738946050699,0.00015299,98089.0,98081.0,0.2038206]
[1738946050899,0.2038065,98088.0,98079.0,0.3608]
[1738946051102,0.2038213,98081.0,98079.0,0.3608]
[1738946051604,0.2038103,98087.0,98079.0,0.3608]
[1738946051812,0.2038133,98085.0,98080.0,0.2038227]
[1738946052000,0.2038133,98085.0,98079.0,0.3608]
[1738946052309,0.00215299,98089.0,98079.0,0.3608]
[1738946052511,0.00215299,98089.0,98084.0,0.2038136]
[1738946052693,0.00215299,98089.0,98079.0,0.3608]
[1738946052898,0.00115299,98089.0,98087.0,0.2038079]
[1738946053205,0.00215299,98089.0,98088.0,0.2038065]
[1738946053404,0.00215299,98089.0,98088.0,0.5646065]
[1738946053716,0.1,98100.0,98099.0,0.2037837]
[1738946054006,0.00153012,98102.0,98101.0,0.2037795]
[1738946054209,0.3015438,98118.0,98099.0,0.3608]
[1738946054398,0.3015438,98118.0,98117.0,0.2037463]
[1738946054807,0.5052899,98118.0,98112.0,0.2037551]
[1738946055003,0.5052899,98118.0,98116.0,0.2037477]
[1738946055303,0.203758,98112.0,98110.0,0.2037601]
[1738946056799,0.3025438,98118.0,98112.0,0.2037566]
[1738946057005,0.3025438,98118.0,98117.0,0.3608]
[1738946057312,0.3015438,98118.0,98117.0,0.3608]
[1738946058316,0.2037326,98124.0,98110.0,0.001]
[1738946058317,0.3608,98124.0,98110.0,0.001]
[1738946058618,0.2037587,98111.0,98110.0,0.001]
[1738946059003,0.2037543,98114.0,98112.0,0.2037562]
[1738946059404,0.3608,98124.0,98109.0,0.3608]
[1738946059709,0.2037592,98111.0,98109.0,0.3608]
[1738946060608,0.00917604,98124.0,98109.0,0.3608]
[1738946060811,0.00015291,98127.0,98118.0,0.3608]
[1738946061006,0.2037335,98124.0,98118.0,0.3608]
[1738946061326,0.00015291,98127.0,98118.0,0.3608]
[1738946061913,0.2037276,98126.0,98122.0,0.2037342]
[1738946062212,0.00015291,98127.0,98125.0,0.2037277]
[1738946062617,0.00015291,98127.0,98126.0,0.3608]
[1738946062816,0.2036906,98144.0,98138.0,0.2037026]
[1738946063112,0.00152945,98145.0,98126.0,0.3608]
[1738946063113,0.2036929,98143.0,98142.0,0.2036944]
[1738946063409,0.01086662,98145.0,98142.0,0.2036944]
[1738946063613,0.00152945,98145.0,98142.0,0.2036944]
[1738946063999,0.20521825,98145.0,98142.0,0.2036944]
[1738946064313,0.00152945,98145.0,98142.0,0.2046944]
[1738946064507,0.00152945,98145.0,98144.0,0.2036902]
[1738946065202,0.00152945,98145.0,98142.0,0.002]
[1738946065806,0.00152945,98145.0,98144.0,0.2036902]
[1738946066810,0.00010129,98153.0,98151.0,0.2036744]
[1738946067018,0.2036736,98152.0,98151.0,0.3608]
[1738946067916,0.2036736,98152.0,98151.0,0.3618]
[1738946068809,0.2036736,98152.0,98151.0,0.001]
[1738946069218,0.00010129,98153.0,98152.0,0.2036736]
[1738946069814,0.2036736,98152.0,98151.0,0.001]
[1738946070315,0.2036736,98152.0,98150.0,0.2036764]
[1738946071022,0.2036736,98152.0,98146.0,0.3608]
[1738946071023,0.00010129,98153.0,98152.0,0.2036736]
[1738946072917,0.00010129,98153.0,98150.0,0.00997838]
[1738946072918,0.2036736,98152.0,98150.0,0.001]
[1738946073522,0.2036768,98151.0,98150.0,0.2036736]
[1738946074118,0.00010129,98153.0,98147.0,0.3608]
[1738946074119,0.2036819,98148.0,98147.0,0.3608]
[1738946074313,0.20377319,98153.0,98152.0,0.2036736]
[1738946074520,0.2036757,98151.0,98150.0,0.001]
[1738946074715,0.2036757,98151.0,98150.0,0.2046778]
[1738946074915,0.00010129,98153.0,98152.0,0.2036736]
[1738946075305,0.20377279,98153.0,98152.0,0.2036736]
[1738946075720,0.00010129,98153.0,98152.0,0.2036736]
[1738946076619,0.00010129,98153.0,98152.0,0.2046736]
[1738946077324,0.20377279,98153.0,98152.0,0.2046736]
[1738946077513,0.20377279,98153.0,98152.0,0.001]
[1738946077714,0.20377279,98153.0,98152.0,0.2046736]
[1738946078818,0.00010129,98153.0,98152.0,0.2046736]
[1738946079415,0.2036202,98178.0,98152.0,0.301]
[1738946079616,0.2391041,98186.0,98177.0,0.3608]
[1738946079815,0.2391041,98186.0,98170.0,0.17937313]
[1738946080020,0.24839596,98186.0,98170.0,0.17937313]
[1738946080230,0.2036257,98176.0,98175.0,0.2036238]
[1738946081625,0.2391041,98186.0,98185.0,0.2036052]
[1738946081817,0.2391041,98186.0,98185.0,0.5644052]
[1738946082018,0.00084,98192.0,98185.0,0.3608]
[1738946082326,0.00910608,98194.0,98189.0,0.2035965]
[1738946082516,0.1499,98199.0,98189.0,0.2035963]
[1738946082720,0.1499,98199.0,98173.0,0.3608]
[1738946082721,0.1499,98199.0,98175.0,0.001]
[1738946082917,0.203591,98192.0,98189.0,0.2035965]
[1738946083628,0.2035866,98194.0,98189.0,0.2035965]
[1738946083813,0.2035919,98192.0,98189.0,0.2035965]
[1738946084219,0.15889625,98199.0,98198.0,0.2035782]
[1738946084417,0.2449,98200.0,98198.0,0.2035782]
[1738946084618,0.4484746,98200.0,98198.0,0.2035782]
[1738946084819,0.20358,98198.0,98189.0,0.00115282]
[1738946085333,0.203585,98195.0,98192.0,0.2035905]
[1738946085716,0.203585,98195.0,98189.0,0.00115282]
[1738946085915,0.203585,98195.0,98194.0,0.2035865]
[1738946086516,0.2035948,98190.0,98189.0,0.00115282]
[1738946087022,0.2036612,98158.0,98153.0,0.20974]
[1738946087217,0.17937313,98170.0,98149.0,0.3608]
[1738946087430,0.1498,98169.0,98150.0,0.17937313]
[1738946087624,0.1498,98169.0,98151.0,0.0090745]
[1738946087826,0.2036516,98163.0,98155.0,0.2036661]
[1738946088026,0.1498,98169.0,98153.0,0.00015282]
[1738946088226,0.2036553,98161.0,98156.0,0.2036652]
[1738946088827,0.1498,98169.0,98153.0,0.00015282]
[1738946089029,0.2036471,98165.0,98153.0,0.00015282]
[1738946089336,0.2036471,98165.0,98159.0,0.2036571]
[1738946089525,0.1498,98169.0,98153.0,0.00015282]
[1738946089827,0.2036518,98163.0,98156.0,0.2036643]
[1738946090027,0.2046561,98161.0,98158.0,0.2036608]
[1738946090424,0.001,98161.0,98153.0,0.00015282]
[1738946090629,0.2036678,98155.0,98153.0,0.00015282]
[1738946091933,0.3608,98168.0,98153.0,0.00015282]
[1738946092229,0.1508,98169.0,98153.0,0.00015282]
[1738946092431,0.2036687,98155.0,98153.0,0.00015282]
[1738946092633,0.2036687,98155.0,98153.0,0.00115282]
[1738946092831,0.2036687,98155.0,98153.0,0.00315282]
[1738946093232,0.2036687,98155.0,98153.0,0.00215282]
[1738946093430,0.2036687,98155.0,98153.0,0.00015282]
[1738946094436,0.00896823,98155.0,98140.0,0.00152814]
[1738946094628,0.2036965,98141.0,98140.0,0.00152814]
[1738946095737,0.2046965,98141.0,98140.0,0.00152814]
[1738946096233,0.001,98141.0,98140.0,0.00152814]
[1738946098029,0.00015282,98150.0,98149.0,0.2036799]
[1738946098229,0.00015282,98150.0,98147.0,0.3608]
[1738946098430,0.2036799,98149.0,98147.0,0.3608]
[1738946099250,0.2036965,98141.0,98140.0,0.00452814]
[1738946099543,0.2036965,98141.0,98140.0,0.00152814]
[1738946100145,0.5644965,98141.0,98140.0,0.00152814]
[1738946100344,0.5644965,98141.0,98096.0,0.3608]
[1738946100345,0.2037131,98133.0,98120.0,0.30335763]
[1738946100555,0.3608,98129.0,98112.0,0.36431519]
[1738946100745,0.2037546,98113.0,98112.0,0.36431519]
[1738946101346,0.1394,98115.0,98112.0,0.36431519]
[1738946101548,0.2037546,98113.0,98112.0,0.36431519]
[1738946102146,0.2047546,98113.0,98112.0,0.36431519]
[1738946103247,0.2047546,98113.0,98107.0,0.3608]
[1738946103447,0.2047546,98113.0,98112.0,0.002]
[1738946103947,0.2057546,98113.0,98112.0,0.002]
[1738946104650,0.2037546,98113.0,98112.0,0.002]
[1738946104843,0.2037546,98113.0,98112.0,0.003]
[1738946105049,0.2037546,98113.0,98112.0,0.001]
[1738946105244,0.1471,98121.0,98112.0,0.001]
[1738946105444,0.2037455,98118.0,98112.0,0.3618]
[1738946105654,0.2037455,98118.0,98112.0,0.3638]
[1738946105851,0.1471,98121.0,98112.0,0.3638]
[1738946106055,0.20388912,98122.0,98116.0,0.2037474]
[1738946106252,0.20388912,98122.0,98112.0,0.3638]
[1738946106253,0.00015282,98122.0,98120.0,0.3608]
[1738946106455,0.00015282,98122.0,98121.0,0.1465]
[1738946108661,0.00115282,98122.0,98099.0,0.3608]
[1738946108860,0.2037733,98104.0,98099.0,0.3608]
[1738946109056,0.5645733,98104.0,98093.0,0.1442]
[1738946109260,0.5645733,98104.0,98103.0,1e-08]
[1738946109454,0.3608,98104.0,98103.0,1e-08]
[1738946109752,0.06252,98111.0,98103.0,1e-08]
[1738946109753,0.2037717,98105.0,98103.0,1e-08]
[1738946111056,0.2037717,98105.0,98103.0,0.00600001]
[1738946111261,0.004,98104.0,98103.0,0.00600001]
[1738946112060,0.2077717,98105.0,98103.0,0.00600001]
[1738946112262,0.2087717,98105.0,98103.0,0.00200001]
[1738946113463,0.2087719,98105.0,98103.0,0.00200001]
[1738946113967,0.005,98104.0,98103.0,1e-08]
[1738946114558,0.004,98104.0,98103.0,1e-08]
[1738946114758,0.2087724,98105.0,98103.0,1e-08]
[1738946115166,0.001,98104.0,98103.0,1e-08]
[1738946115470,0.005,98104.0,98103.0,1e-08]
[1738946115672,0.004,98104.0,98103.0,1e-08]
[1738946115871,0.005,98104.0,98103.0,1e-08]
[1738946117868,0.305,98104.0,98103.0,1e-08]
[1738946118768,0.005,98104.0,98103.0,1e-08]
[1738946122662,0.305,98104.0,98103.0,1e-08]
[1738946122868,0.305,98104.0,98080.0,0.00152907]
[1738946122869,0.203821,98081.0,98080.0,0.00152907]
[1738946123066,0.3608,98081.0,98059.0,0.1422]
[1738946123269,0.2038541,98066.0,98059.0,0.1422]
[1738946123672,0.2038541,98066.0,98058.0,0.3608]
[1738946123871,0.2038541,98066.0,98054.0,0.3608]
[1738946124083,0.2038541,98066.0,98063.0,0.2038571]
[1738946124374,0.17957376,98074.0,98063.0,0.2038571]
[1738946124575,0.17957376,98074.0,98055.0,0.00015292]
[1738946124778,0.003,98066.0,98065.0,0.2038543]
[1738946124975,0.004,98066.0,98063.0,0.3608]
[1738946125178,0.2078522,98066.0,98055.0,0.00015292]
[1738946125581,0.2068522,98066.0,98055.0,0.00015292]
[1738946125778,0.2068522,98066.0,98064.0,0.1377]
[1738946126173,0.2038522,98066.0,98064.0,0.1377]
[1738946126371,0.2038522,98066.0,98064.0,0.002]
[1738946126684,0.2038522,98066.0,98014.0,0.3608]
[1738946126685,0.06244,98066.0,98014.0,0.3608]
[1738946126868,0.2039063,98040.0,98026.0,0.2785]
[1738946127276,0.3608,98046.0,98026.0,0.2785]
[1738946127577,0.3608,98046.0,98031.0,0.203925]
[1738946127578,0.42324,98046.0,98031.0,0.203925]
[1738946127784,0.42324,98046.0,98040.0,0.1354]
[1738946128084,0.3608,98046.0,98040.0,0.1354]
[1738946128285,0.5646939,98046.0,98040.0,0.1354]
[1738946128887,0.2039063,98040.0,98039.0,0.01052971]
[1738946129186,0.2039063,98040.0,98039.0,0.00752971]
[1738946129577,0.2039063,98040.0,98039.0,0.00352971]
[1738946130780,0.2039063,98040.0,98039.0,0.00852971]
[1738946130989,0.2039063,98040.0,98039.0,0.01152971]
[1738946133583,0.36995275,98046.0,98033.0,0.000153]
[1738946133889,0.36995275,98046.0,98021.0,0.145]
[1738946133890,0.3608,98034.0,98021.0,0.145]
[1738946134086,0.36995275,98046.0,98031.0,0.2039239]
[1738946134087,0.2039008,98043.0,98031.0,0.2039239]
[1738946134286,0.203904,98042.0,98032.0,0.2814]
[1738946134478,0.2039095,98039.0,98032.0,0.2814]
[1738946134681,0.203913,98037.0,98032.0,0.2814]
[1738946135184,0.2039292,98029.0,98026.0,0.00010249]
[1738946135576,0.2039214,98033.0,98026.0,0.00010249]
[1738946135784,0.2039333,98027.0,98026.0,0.00010249]
[1738946137181,0.2049333,98027.0,98026.0,0.00010249]
[1738946137592,0.2059333,98027.0,98026.0,0.00010249]
[1738946141182,0.002,98027.0,98026.0,0.00010249]
[1738946145687,0.001,98027.0,98026.0,0.00610249]
[1738946145883,0.56577231,98028.0,98026.0,0.00610249]
[1738946146088,0.001,98027.0,98026.0,0.01310249]
[1738946147191,0.56569231,98028.0,98026.0,0.00610249]
[1738946147386,0.5657323,98028.0,98026.0,0.01210249]
[1738946148195,0.5657323,98028.0,98026.0,0.00610249]
[1738946148395,0.5657323,98028.0,98026.0,0.01110249]
[1738946149594,0.2039691,98010.0,98002.0,0.3608]
[1738946149786,0.2039691,98010.0,98005.0,0.2753]
[1738946149988,0.2039622,98014.0,98005.0,0.2753]
[1738946150187,0.11997619,98020.0,98005.0,0.2753]
[1738946150188,0.203969,98010.0,98005.0,0.2753]
[1738946150689,0.2039774,98006.0,98003.0,0.1416]
[1738946151093,0.2039774,98006.0,98005.0,0.004]
[1738946151489,0.000153,98017.0,98005.0,0.009]
[1738946151690,0.000153,98017.0,98011.0,0.3608]
[1738946152397,0.000153,98017.0,98015.0,0.2039571]
[1738946152602,0.3608,98043.0,98011.0,0.3608]
[1738946152802,0.2039388,98025.0,98021.0,0.3608]
[1738946152985,0.11997619,98030.0,98024.0,0.2039381]
[1738946153185,0.11997619,98030.0,98021.0,0.3608]
[1738946153186,0.11997619,98030.0,98025.0,0.3495365]
[1738946153394,0.00921383,98032.0,98026.0,0.3376344]
[1738946153793,0.3618,98028.0,98026.0,0.3376344]
[1738946154102,0.001,98028.0,98026.0,0.3376344]
[1738946154596,0.001,98028.0,98026.0,0.1347]
[1738946154792,0.001,98028.0,98027.0,0.2039333]
[1738946155401,0.000153,98037.0,98036.0,0.2039146]
[1738946155902,0.00153093,98051.0,98050.0,0.2038855]
[1738946156204,0.10859081,98060.0,98059.0,0.2038668]
[1738946156391,0.2038225,98081.0,98059.0,0.2038668]
[1738946156392,0.11997619,98090.0,98059.0,0.3608]
[1738946156586,0.11997619,98090.0,98068.0,0.3608]
[1738946156587,0.12928016,98090.0,98068.0,0.3608]
[1738946156793,0.2038245,98080.0,98075.0,0.2038335]
[1738946157201,0.2038245,98080.0,98077.0,0.2038284]
[1738946158107,0.2048245,98080.0,98077.0,0.2038284]
[1738946159293,0.001,98080.0,98071.0,0.1431]
[1738946159492,0.2038341,98075.0,98071.0,0.1431]
[1738946159898,0.2038394,98073.0,98071.0,0.1431]
[1738946160096,0.2058245,98080.0,98071.0,0.1431]
[1738946160295,0.002,98080.0,98078.0,0.203827]
[1738946160496,0.01143887,98080.0,98071.0,0.1431]
[1738946160705,0.002,98080.0,98071.0,0.1431]
[1738946160901,0.001,98080.0,98071.0,0.001]
[1738946161506,0.001,98080.0,98078.0,0.2038269]
[1738946161803,0.002,98080.0,98078.0,0.2038269]
[1738946161994,0.3608,98079.0,98069.0,0.000153]
[1738946162195,0.3608,98070.0,98044.0,0.2399]
[1738946162500,0.3608,98070.0,98040.0,0.30342526]
[1738946162501,0.2039042,98041.0,98040.0,0.30342526]
[1738946162895,0.2038968,98045.0,98040.0,0.30342526]
[1738946163199,0.3608,98063.0,98040.0,0.30342526]
[1738946163394,0.3608,98055.0,98040.0,0.30342526]
[1738946163591,0.2040353,98052.0,98045.0,0.2038954]
[1738946163796,0.2038841,98051.0,98040.0,0.30342526]
[1738946163995,0.2038841,98051.0,98041.0,0.203903]
[1738946164206,0.5647035,98042.0,98040.0,0.30342526]
[1738946164704,0.5647035,98042.0,98040.0,0.30442526]
[1738946164900,0.5647035,98042.0,98040.0,0.001]
[1738946165106,0.4647035,98042.0,98040.0,0.001]
[1738946165704,0.2608,98042.0,98040.0,0.001]
[1738946166095,0.27037926,98042.0,98040.0,0.002]
[1738946167102,0.001,98042.0,98041.0,0.2039042]
[1738946167405,0.001,98042.0,98041.0,0.13375637]
[1738946167797,0.000153,98052.0,98035.0,0.3608]
[1738946167997,0.002,98042.0,98036.0,0.2039146]
[1738946168198,0.002,98042.0,98039.0,0.2039065]
[1738946168399,0.001,98042.0,98041.0,0.2039042]
[1738946168598,0.005,98042.0,98041.0,0.2039042]
[1738946169006,0.005,98042.0,98035.0,0.3608]
[1738946169209,0.004,98042.0,98035.0,0.3608]
[1738946169509,0.007,98042.0,98035.0,0.3608]
[1738946169905,0.007,98042.0,98037.0,0.2039112]
[1738946170101,0.003,98042.0,98037.0,0.2039112]
[1738946170305,0.007,98042.0,98037.0,0.2039112]
[1738946170810,0.005,98042.0,98035.0,0.3608]
[1738946171107,0.005,98042.0,98040.0,0.2039059]
[1738946171901,0.01344414,98042.0,98040.0,0.2039059]
[1738946172306,0.07022243,98041.0,98040.0,0.2039059]
[1738946172905,0.3608,98074.0,98040.0,0.06216]
[1738946173108,0.2038251,98080.0,98072.0,0.2038389]
[1738946173303,0.78274001,98097.0,98061.0,0.3608]
[1738946173500,0.2038148,98084.0,98074.0,0.2038345]
[1738946173695,0.3608,98086.0,98071.0,0.3608]
[1738946174004,0.009,98074.0,98069.0,0.5646451]
[1738946174193,0.009,98074.0,98069.0,0.5647981]
[1738946174394,0.009,98074.0,98069.0,0.360953]
[1738946174604,0.2038431,98071.0,98069.0,0.360953]
[1738946174802,0.2038431,98071.0,98069.0,0.000153]
[1738946176397,0.4168,98070.0,98069.0,0.000153]
[1738946177705,0.4198,98070.0,98069.0,0.000153]
[1738946178305,0.2819,98070.0,98069.0,0.000153]
[1738946178615,0.003,98070.0,98069.0,0.000153]
[1738946179309,0.007,98070.0,98069.0,0.000153]
[1738946180003,0.007,98070.0,98069.0,0.203999]
[1738946180306,0.17872784,98090.0,98087.0,0.2038086]
[1738946180497,0.2037485,98116.0,98087.0,0.2038086]
[1738946180498,0.00096001,98133.0,98102.0,0.2037774]
[1738946180702,0.24847769,98110.0,98109.0,0.2037628]
[1738946180912,0.2391041,98110.0,98109.0,0.2037628]
[1738946181103,0.2391041,98110.0,98091.0,0.0509498]
[1738946181104,0.9607041,98110.0,98064.0,0.2162]
[1738946181308,0.2038688,98058.0,98057.0,0.3608]
[1738946181506,0.3608,98064.0,98047.0,0.2038896]
[1738946181717,0.3608,98064.0,98048.0,0.00015291]
[1738946182212,0.2038875,98050.0,98048.0,0.00015291]
[1738946182610,0.2038875,98050.0,98048.0,1e-08]
[1738946182915,0.3608,98064.0,98048.0,1e-08]
[1738946182916,0.3608,98069.0,98049.0,0.3608]
[1738946183104,0.2038655,98060.0,98051.0,0.2038819]
[1738946183304,0.002,98064.0,98052.0,0.1306]
[1738946183506,0.2038693,98058.0,98052.0,0.1306]
[1738946183907,0.3608,98068.0,98053.0,0.2038792]
[1738946184212,0.2038696,98058.0,98053.0,0.2038792]
[1738946184416,0.00215291,98067.0,98053.0,0.2038792]
[1738946184613,0.00015291,98067.0,98053.0,0.2038792]
[1738946184811,0.2038649,98060.0,98054.0,0.2038765]
[1738946185126,0.2038674,98059.0,98054.0,0.2038765]
[1738946185319,0.2038793,98053.0,98052.0,0.002]
[1738946186011,0.2038793,98053.0,98052.0,0.001]
[1738946186203,0.2038876,98049.0,98048.0,1e-08]
[1738946186409,0.5646876,98049.0,98048.0,1e-08]
[1738946187318,0.57417839,98049.0,98048.0,1e-08]
[1738946187519,0.57617839,98049.0,98048.0,1e-08]
[1738946187716,0.002,98049.0,98048.0,0.20388961]
[1738946187907,0.17984335,98090.0,98066.0,0.2038522]
[1738946187908,0.00969325,98067.0,98066.0,0.2038522]
[1738946188105,0.00015291,98067.0,98066.0,0.2038522]
[1738946188312,0.00015291,98067.0,98057.0,0.17984335]
[1738946188617,0.2038591,98063.0,98059.0,0.2038654]
[1738946188914,0.2038591,98063.0,98058.0,0.1372]
[1738946188915,0.5646647,98060.0,98058.0,0.1372]
[1738946189224,0.3608,98060.0,98048.0,1e-08]
[1738946189520,0.3608,98060.0,98048.0,0.13820001]
[1738946189817,0.2038864,98050.0,98048.0,0.13820001]
[1738946190019,0.2038864,98050.0,98048.0,1e-08]
[1738946191317,0.3608,98052.0,98034.0,0.2684]
[1738946191522,0.3608,98035.0,98034.0,0.4723188]
[1738946191907,0.37024696,98060.0,98034.0,1.23118]
[1738946192112,0.2038324,98076.0,98064.0,0.2038549]
[1738946192323,0.3988,98089.0,98076.0,0.2038309]
[1738946192518,0.15872706,98078.0,98076.0,0.2038309]
[1738946193117,0.14906838,98078.0,98076.0,0.2038309]
[1738946193514,0.15206838,98078.0,98076.0,0.2038309]
[1738946193816,0.15606838,98078.0,98076.0,0.2038309]
[1738946194009,0.004,98078.0,98076.0,0.2038309]
[1738946194215,0.004,98078.0,98076.0,0.2048309]
[1738946194719,0.2078284,98078.0,98076.0,0.001]
[1738946195121,0.000153,98080.0,98076.0,0.001]
[1738946195324,0.004,98078.0,98077.0,0.2038294]
[1738946196023,0.000153,98080.0,98079.0,0.2038252]
[1738946196229,0.003153,98080.0,98079.0,0.5646252]
[1738946196824,0.000153,98080.0,98079.0,0.5646252]
[1738946197012,0.3608,98100.0,98079.0,0.42284]
[1738946197218,0.4887,98119.0,98090.0,0.54064335]
[1738946197417,0.2037581,98112.0,98093.0,0.2037959]
[1738946197717,0.3608,98109.0,98091.0,0.4064]
[1738946197923,0.3608,98098.0,98091.0,0.4064]
[1738946198125,0.5645869,98098.0,98091.0,0.2697]
[1738946198427,0.5645869,98098.0,98095.0,0.203791]
[1738946198918,0.00015291,98104.0,98091.0,0.2697]
[1738946199119,0.00015291,98104.0,98093.0,0.001]
[1738946199425,0.00015291,98104.0,98102.0,0.2037761]
[1738946199726,0.014,98098.0,98095.0,0.002]
[1738946200219,0.2037894,98097.0,98095.0,0.001]
[1738946200425,0.3442894,98097.0,98093.0,0.002]
[1738946201019,0.2037936,98095.0,98093.0,0.002]
[1738946201219,0.1405,98097.0,98093.0,0.002]
[1738946201817,0.005,98098.0,98095.0,0.001]
[1738946202023,0.009,98098.0,98097.0,0.5645878]
[1738946202324,0.1305,98136.0,98133.0,0.2037131]
[1738946202532,0.15846404,98134.0,98133.0,0.2037131]
[1738946202716,0.15846404,98134.0,98127.0,0.3608]
[1738946202919,0.2037162,98132.0,98130.0,0.2037179]
[1738946203327,0.15846404,98134.0,98121.0,0.1335]
[1738946203523,0.15846404,98134.0,98128.0,0.3608]
[1738946203727,0.16746404,98134.0,98133.0,0.001]
[1738946204525,0.16746404,98134.0,98133.0,0.2047131]
[1738946204716,0.16746404,98134.0,98133.0,0.001]
[1738946205131,0.15846404,98134.0,98128.0,0.2037224]
[1738946205429,0.16546404,98134.0,98121.0,0.00115291]
[1738946205621,0.16546404,98134.0,98122.0,0.2037353]
[1738946205821,0.16546404,98134.0,98121.0,0.00115291]
[1738946206014,0.15846404,98134.0,98121.0,0.00015291]
[1738946206223,0.3608,98132.0,98121.0,0.00015291]
[1738946207129,0.3608,98132.0,98122.0,0.3608]
[1738946207531,0.04954747,98134.0,98131.0,0.3608]
[1738946207724,0.00925958,98134.0,98133.0,0.2037131]
[1738946208627,0.00925958,98134.0,98133.0,0.21347107]
[1738946210025,0.00925958,98134.0,98133.0,0.57427107]
[1738946210529,0.00925958,98134.0,98123.0,0.2037335]
[1738946210833,0.3608,98142.0,98122.0,0.3608]
[1738946211033,0.00963704,98149.0,98140.0,0.2036985]
[1738946211336,0.28412922,98165.0,98140.0,0.2036985]
[1738946211337,0.14842922,98165.0,98144.0,0.0509224]
[1738946211531,0.14842922,98165.0,98163.0,0.2036489]
[1738946212227,0.2036488,98164.0,98163.0,0.2036489]
[1738946212423,0.14842922,98165.0,98163.0,0.2036489]
[1738946212825,0.14842922,98165.0,98163.0,0.2046489]
[1738946213134,0.2036488,98164.0,98163.0,0.001]
[1738946213331,0.6036488,98164.0,98163.0,0.001]
[1738946214527,0.6036488,98164.0,98154.0,0.00015282]
[1738946214528,0.4,98164.0,98154.0,0.00015282]
[1738946214733,0.4,98164.0,98154.0,0.20382232]
[1738946214734,0.3608,98155.0,98154.0,0.20382232]
[1738946215934,0.3608,98155.0,98154.0,0.20482232]
[1738946216134,0.3608,98155.0,98154.0,0.00115282]
[1738946216337,0.3688,98155.0,98154.0,0.00215282]
[1738946216832,0.008,98155.0,98154.0,0.00215282]
[1738946217135,0.3608,98189.0,98173.0,0.2036301]
[1738946217319,0.00938454,98178.0,98173.0,0.2036301]
[1738946217933,0.00938454,98178.0,98137.0,0.1128061]
[1738946217934,0.00938454,98178.0,98154.0,0.14388583]
[1738946218136,0.3608,98163.0,98162.0,0.2036529]
[1738946218630,0.3608,98163.0,98154.0,0.00015282]
[1738946218934,0.2036619,98158.0,98154.0,0.00015282]
[1738946219128,0.3608,98155.0,98154.0,0.00215282]
[1738946220032,0.3608,98155.0,98154.0,0.00115282]
[1738946220227,0.2036953,98142.0,98136.0,0.2037066]
[1738946220432,0.3608,98140.0,98137.0,0.2037045]
[1738946220630,0.3608,98138.0,98120.0,0.17984335]
[1738946220825,0.3608,98138.0,98110.0,0.17984335]
[1738946220826,0.3608,98128.0,98110.0,0.17984335]
[1738946221026,0.3608,98128.0,98112.0,0.2037554]
[1738946221222,0.5645248,98128.0,98115.0,0.2037489]
[1738946221626,0.2037287,98126.0,98115.0,0.2037489]
[1738946222538,0.3608,98116.0,98115.0,0.001]
[1738946222728,0.3608,98116.0,98110.0,0.00015282]
[1738946222729,0.42264,98116.0,98110.0,0.00015282]
[1738946222934,0.2037933,98095.0,98080.0,0.17984335]
[1738946223135,0.3608,98100.0,98098.0,0.2037852]
[1738946223334,0.3608,98109.0,98103.0,0.2037737]
[1738946223726,0.3608,98109.0,98099.0,0.17984335]
[1738946223933,0.3608,98109.0,98108.0,0.203765]
[1738946224937,0.3608,98109.0,98103.0,0.003]
[1738946225133,0.00015291,98114.0,98105.0,0.3608]
[1738946225326,0.00015291,98114.0,98108.0,0.005]
[1738946225539,0.00015291,98114.0,98113.0,0.5645546]
[1738946225741,0.00015291,98114.0,98113.0,0.2037546]
[1738946226328,0.2037548,98113.0,98108.0,0.003]
[1738946226532,0.00015291,98114.0,98108.0,0.003]
[1738946226533,0.3608,98109.0,98108.0,0.003]
[1738946226729,0.00015291,98114.0,98108.0,0.003]
[1738946226935,0.3608,98109.0,98108.0,0.003]
[1738946227430,0.00015291,98114.0,98108.0,0.003]
[1738946227635,0.00015291,98114.0,98111.0,0.2037572]
[1738946227840,0.00783264,98114.0,98113.0,0.003]
[1738946228042,0.00783264,98114.0,98113.0,0.005]
[1738946228544,0.00783264,98114.0,98112.0,0.2037555]
[1738946229232,0.00783264,98114.0,98113.0,0.002]
[1738946229938,0.00015291,98114.0,98113.0,0.002]
[1738946230339,0.1900344,98132.0,98113.0,0.19764]
[1738946230541,0.2742,98163.0,98157.0,0.2036633]
[1738946231032,0.2036233,98177.0,98157.0,0.2036633]
[1738946231436,0.4026,98188.0,98157.0,0.5644633]
[1738946231640,0.4026,98188.0,98157.0,0.3608]
[1738946231641,0.00015282,98167.0,98157.0,0.3608]
[1738946231838,0.005,98158.0,98157.0,0.74530665]
[1738946232041,0.007,98158.0,98157.0,0.9262633]
[1738946232248,0.007,98158.0,98157.0,0.5654633]
[1738946232749,0.007,98158.0,98157.0,0.21221963]
[1738946232936,0.007,98158.0,98157.0,0.2046633]
[1738946234038,0.002,98158.0,98157.0,0.2036633]
[1738946234235,0.004,98158.0,98157.0,0.2036633]
[1738946235551,0.004,98158.0,98155.0,0.3608]
[1738946236444,0.004,98158.0,98156.0,0.2036644]
[1738946237046,0.00015282,98167.0,98155.0,0.3608]
[1738946237250,0.00015282,98167.0,98166.0,0.5644446]
[1738946238135,2e-08,98167.0,98166.0,0.5644446]
[1738946238346,0.00384721,98167.0,98166.0,0.5644446]
[1738946238937,0.00684721,98167.0,98166.0,0.5644446]
[1738946239141,0.11633851,98174.0,98166.0,0.3608]
[1738946239342,0.20846477,98194.0,98180.0,0.2036156]
[1738946239551,0.20846477,98194.0,98180.0,0.5644156]
[1738946240047,0.00015282,98190.0,98180.0,0.5644156]
[1738946240256,0.2036006,98188.0,98180.0,0.5644156]
[1738946240552,0.2036026,98187.0,98180.0,0.5644156]
[1738946241350,0.00015282,98190.0,98180.0,0.5644156]
[1738946241848,0.00015282,98190.0,98189.0,0.2035969]
[1738946242041,0.00015282,98190.0,98189.0,0.5643969]
[1738946242442,0.00015282,98190.0,98189.0,0.2035969]
[1738946242845,0.00015282,98190.0,98180.0,0.54164335]
[1738946243146,0.2036037,98186.0,98184.0,0.2036062]
[1738946243345,0.00015282,98190.0,98188.0,0.2035984]
[1738946243547,0.3608,98189.0,98180.0,0.18084335]